fUST/lending_fUST_20250305
["ID","MTS","AMOUNT","RATE_DAILY","PERIOD"]
[355423540,1741131054836,-544.54,0.00043835,120]
[355423541,1741131054846,-500.0,0.00043835,120]
[355423542,1741131054856,-500.0,0.00043835,120]
[355423543,1741131054865,-9883.86,0.00043835,120]
[355423544,1741131054875,-500.0,0.00043835,120]
[355423545,1741131054884,-500.0,0.00043835,30]
[355423546,1741131054894,-500.0,0.00043835,120]
[355423547,1741131054903,-616.1,0.00043835,120]
[355423548,1741131054914,-500.0,0.00043835,120]
[355423549,1741131054926,-1413.21,0.00043835,120]
[355423550,1741131054939,-1287.74,0.00043835,120]
[355423551,1741131054951,-520.83,0.00043835,120]
[355423552,1741131054963,-520.07594175,0.00043835,120]
[355423553,1741131054973,-500.0,0.00043835,120]
[355423554,1741131054983,-500.0,0.00043835,120]
[355423555,1741131054993,-2095.29,0.00043835,120]
[355423556,1741131055002,-3929.98,0.00043835,120]
[355423557,1741131055011,-500.0,0.00043835,120]
[355423558,1741131055021,-500.0,0.00043835,120]
[355423559,1741131055030,-500.0,0.00043835,120]
[355423560,1741131055040,-500.0,0.00043835,120]
[355423561,1741131055050,-500.0,0.00043835,120]
[355423562,1741131055059,-500.0,0.00043835,120]
[355423563,1741131055069,-500.0,0.00043835,120]
[355423564,1741131055078,-500.0,0.00043835,120]
[355423565,1741131055088,-5782.26,0.00043835,30]
[355423566,1741131055098,-500.0,0.00043835,120]
[355423567,1741131055107,-500.0,0.00043835,120]
[355423568,1741131055117,-500.0,0.00043835,120]
[355423569,1741131055127,-500.0,0.00043835,120]
[355423570,1741131055136,-500.0,0.00043835,120]
[355423571,1741131055146,-500.0,0.00043835,120]
[355423572,1741131055156,-500.0,0.00043835,120]
[355423573,1741131055166,-500.0,0.00043835,120]
[355423574,1741131055175,-500.0,0.00043835,120]
[355423575,1741131055184,-500.0,0.00043835,120]
[355423576,1741131055193,-500.0,0.00043835,120]
[355423577,1741131055202,-500.0,0.00043835,120]
[355423578,1741131055211,-1426.43,0.00043835,120]
[355423579,1741131055221,-500.0,0.00043835,120]
[355423580,1741131055231,-500.0,0.00043835,120]
[355423581,1741131055240,-662.21,0.00043835,120]
[355423582,1741131055250,-500.0,0.00043835,120]
[355423583,1741131055259,-500.0,0.00043835,120]
[355423584,1741131055269,-500.0,0.00043835,120]
[355423585,1741131055278,-501.73,0.00043835,120]
[355423586,1741131055288,-500.0,0.00043835,120]
[355423587,1741131055297,-500.0,0.00043835,120]
[355423588,1741131055307,-500.0,0.00043835,120]
[355423589,1741131055316,-500.0,0.00043835,120]
[355423590,1741131055325,-500.0,0.00043835,120]
[355423591,1741131055335,-500.0,0.00043835,120]
[355423592,1741131055344,-500.0,0.00043835,120]
[355423593,1741131055353,-500.0,0.00043835,120]
[355423594,1741131055363,-500.0,0.00043835,120]
[355423595,1741131055372,-500.0,0.00043835,120]
[355423596,1741131055381,-5340.33,0.00043835,120]
[355423597,1741131055391,-598.83417877,0.00043835,120]
[355423598,1741131055400,-500.0,0.00043835,120]
[355423599,1741131055409,-560.51,0.00043835,120]
[355423600,1741131055419,-500.0,0.00043835,120]
[355423601,1741131055428,-766.32,0.00043835,120]
[355423602,1741131055437,-500.0,0.00043835,120]
[355423603,1741131055449,-500.0,0.00043835,120]
[355423604,1741131055460,-541.66,0.00043835,120]
[355423605,1741131055470,-500.0,0.00043835,120]
[355423606,1741131055479,-5018.49,0.00043835,120]
[355423607,1741131055489,-4705.48419509,0.00043835,6]
[355423608,1741131055911,-4059.74580491,0.00043835,6]
[355423609,1741131055922,-500.0,0.00043835,120]
[355423610,1741131055931,-210.35762485,0.00043835,120]
[355423611,1741131055942,-500.0,0.00043835,120]
[355423612,1741131055951,-500.0,0.00043835,120]
[355423613,1741131055961,-500.0,0.00043835,120]
[355423614,1741131055971,-500.0,0.00043835,120]
[355423615,1741131055980,-500.0,0.00043835,120]
[355423616,1741131055990,-500.0,0.00043835,120]
[355423617,1741131056001,-370.91271712,0.00043835,120]
[355423654,1741132232528,-1697.32803072,0.00024773,2]
[355423655,1741132232539,-3500.25884094,0.00024779,2]
[355423656,1741132232549,-150.0,0.0002488,2]
[355423657,1741132232559,-157.0,0.00025551,2]
[355423658,1741132232569,-300.0,0.0002556,2]
[355423659,1741132232581,-24900.0,0.00025561,2]
[355423660,1741132232591,-1191.6908945,0.00025603,2]
[355423661,1741132232602,-200.0,0.00025703,2]
[355423662,1741132232612,-180.689601,0.00025764,2]
[355423663,1741132232621,-150.0,0.0002625,2]
[355423664,1741132232631,-1930.65730855,0.00026617,2]
[355423665,1741132232640,-596.07287559,0.000269,4]
[355423668,1741132238160,-135.19848809,0.000269,4]
[355423669,1741132238170,-157.0,0.00027246,2]
[355423670,1741132238180,-157.0,0.00027246,2]
[355423671,1741132238190,-500.0,0.00027255,2]
[355423672,1741132238200,-500.0,0.00027255,2]
[355423673,1741132238210,-500.0,0.00027255,2]
[355423674,1741132238219,-500.0,0.00027255,2]
[355423675,1741132238228,-500.0,0.00027255,2]
[355423676,1741132238238,-500.0,0.00027255,2]
[355423677,1741132238247,-500.0,0.00027255,2]
[355423678,1741132238257,-500.0,0.00027255,2]
[355423679,1741132238266,-500.0,0.00027255,2]
[355423680,1741132238276,-500.0,0.00027255,2]
[355423681,1741132238285,-500.0,0.00027255,2]
[355423682,1741132238295,-500.0,0.00027255,2]
[355423683,1741132238304,-500.0,0.00027255,2]
[355423684,1741132238314,-500.0,0.00027255,2]
[355423685,1741132238324,-500.0,0.00027255,2]
[355423686,1741132238334,-500.0,0.00027255,2]
[355423687,1741132238344,-500.0,0.00027255,2]
[355423688,1741132238353,-500.0,0.00027255,2]
[355423689,1741132238363,-500.0,0.00027255,2]
[355423690,1741132238372,-500.0,0.00027255,2]
[355423691,1741132238382,-500.0,0.00027255,2]
[355423692,1741132238391,-500.0,0.00027255,2]
[355423693,1741132238400,-500.0,0.00027255,2]
[355423694,1741132238410,-500.0,0.00027255,2]
[355423695,1741132238420,-500.0,0.00027255,2]
[355423696,1741132238430,-500.0,0.00027255,2]
[355423697,1741132238439,-500.0,0.00027255,2]
[355423698,1741132238448,-500.0,0.00027255,2]
[355423699,1741132238458,-500.0,0.00027255,2]
[355423700,1741132238467,-500.0,0.00027255,2]
[355423701,1741132238477,-500.0,0.00027255,2]
[355423702,1741132238486,-500.0,0.00027255,2]
[355423703,1741132238495,-500.0,0.00027255,2]
[355423704,1741132238505,-500.0,0.00027255,2]
[355423705,1741132238514,-500.0,0.00027255,2]
[355423706,1741132238523,-500.0,0.00027255,2]
[355423707,1741132238532,-500.0,0.00027255,2]
[355423708,1741132238542,-500.0,0.00027255,2]
[355423709,1741132238552,-500.0,0.00027255,2]
[355423710,1741132238562,-500.0,0.00027255,2]
[355423711,1741132238571,-500.0,0.00027255,2]
[355423712,1741132238581,-500.0,0.00027255,2]
[355423713,1741132238591,-500.0,0.00027255,2]
[355423714,1741132238601,-500.0,0.00027255,2]
[355423715,1741132238611,-500.0,0.00027255,2]
[355423716,1741132238621,-500.0,0.00027255,2]
[355423717,1741132238631,-500.0,0.00027255,2]
[355423718,1741132238641,-500.0,0.00027255,2]
[355423719,1741132238651,-500.0,0.00027255,2]
[355423720,1741132238660,-500.0,0.00027255,2]
[355423721,1741132238672,-500.0,0.00027255,2]
[355423722,1741132238683,-500.0,0.00027255,2]
[355423723,1741132238692,-500.0,0.00027255,2]
[355423724,1741132238702,-500.0,0.00027255,2]
[355423725,1741132238712,-500.0,0.00027255,2]
[355423726,1741132238722,-500.0,0.00027255,2]
[355423727,1741132238732,-332.50089085,0.00027255,2]
[355423728,1741132238741,-500.0,0.00027255,2]
[355423729,1741132238751,-500.0,0.00027255,2]
[355423730,1741132238760,-500.0,0.00027255,2]
[355423731,1741132238770,-500.0,0.00027255,2]
[355423732,1741132238780,-500.0,0.00027255,2]
[355423733,1741132238791,-500.0,0.00027255,2]
[355423734,1741132238800,-500.0,0.00027256,2]
[355423735,1741132238810,-500.0,0.00027256,2]
[355423736,1741132238821,-370.36816884,0.00027256,2]
[355423737,1741132238834,-500.0,0.00027256,2]
[355423738,1741132238847,-351.96128064,0.00027256,2]
[355423739,1741132238856,-63991.37117158,0.00027257,2]
[355423787,1741132240594,-500.0,0.00027255,2]
[355423789,1741132240604,-500.0,0.00027255,2]
[355423790,1741132240615,-500.0,0.00027255,2]
[355423791,1741132240623,-500.0,0.00027255,2]
[355423792,1741132240633,-500.0,0.00027255,2]
[355423793,1741132240643,-500.0,0.00027255,2]
[355423795,1741132240652,-500.0,0.00027255,2]
[355423797,1741132240662,-500.0,0.00027255,2]
[355423799,1741132240672,-500.0,0.00027255,2]
[355423800,1741132240682,-500.0,0.00027255,2]
[355423802,1741132240691,-60739.00312266,0.00027257,2]
[355423804,1741132240703,-3148.18315918,0.00027257,2]
[355423990,1741132243476,-27199.999999,0.00027257,2]
[355423992,1741132243488,-460.58293109,0.00027257,2]
[355423994,1741132243500,-2050.61624528,0.00027257,2]
[355423997,1741132243512,-4363.53496598,0.00027257,2]
[355424003,1741132243562,-474.65165471,0.00027257,2]
[355424261,1741133432476,-3743.64981237,0.00024656,3]
[355424263,1741133432486,-500.0,0.00025157,2]
[355424264,1741133432496,-500.0,0.00025157,2]
[355424266,1741133432506,-517.84773385,0.00025157,2]
[355424269,1741133432516,-300.0,0.00025951,2]
[355424270,1741133432526,-1752.67968,0.00025952,2]
[355424273,1741133432536,-1441.2487201,0.00026036,2]
[355424275,1741133432545,-24900.0,0.0002604,2]
[355424276,1741133432555,-200.0,0.00026136,2]
[355424279,1741133432565,-7404.24119596,0.00026868,2]
[355424281,1741133432574,-706.89565148,0.000269,4]
[355424283,1741133432586,-150.0,0.000271,2]
[355424284,1741133432597,-647.51183834,0.00027156,5]
[355424286,1741133432608,-18112.16523472,0.00027156,5]
[355424288,1741133432618,-222000.0,0.00027156,2]
[355424290,1741133432627,-1285.09912,0.00027167,2]
[355424292,1741133432637,-655.86418651,0.00027173,2]
[355424295,1741133432647,-1291.0,0.000272,2]
[355424296,1741133432656,-500.0,0.00027244,2]
[355424299,1741133432667,-519.92217773,0.00027244,2]
[355424301,1741133432677,-500.0,0.00027245,2]
[355424303,1741133432687,-500.0,0.00027245,2]
[355424305,1741133432697,-500.0,0.00027245,2]
[355424307,1741133432706,-500.0,0.00027245,2]
[355424308,1741133432716,-500.0,0.00027245,2]
[355424310,1741133432724,-500.0,0.00027245,2]
[355424312,1741133432734,-500.0,0.00027245,2]
[355424315,1741133432744,-500.0,0.00027245,2]
[355424317,1741133432754,-500.0,0.00027245,2]
[355424319,1741133432763,-500.0,0.00027245,2]
[355424320,1741133432773,-500.0,0.00027245,2]
[355424322,1741133432781,-500.0,0.00027245,2]
[355424324,1741133432791,-500.0,0.00027245,2]
[355424326,1741133432800,-500.0,0.00027245,2]
[355424328,1741133432810,-500.0,0.00027245,2]
[355424330,1741133432820,-211.79332232,0.00027245,2]
[355424332,1741133432829,-500.0,0.00027245,2]
[355424335,1741133432839,-500.0,0.00027245,2]
[355424336,1741133432849,-500.0,0.00027245,2]
[355424338,1741133432859,-500.0,0.00027245,2]
[355424341,1741133432869,-500.0,0.00027245,2]
[355424342,1741133432878,-500.0,0.00027245,2]
[355424344,1741133432887,-500.0,0.00027245,2]
[355424346,1741133432898,-500.0,0.00027245,2]
[355424349,1741133432908,-500.0,0.00027245,2]
[355424351,1741133432917,-500.0,0.00027245,2]
[355424352,1741133432927,-500.0,0.00027245,2]
[355424355,1741133432937,-500.0,0.00027245,2]
[355424357,1741133432947,-500.0,0.00027245,2]
[355424358,1741133432957,-500.0,0.00027245,2]
[355424361,1741133432966,-500.0,0.00027245,2]
[355424362,1741133432976,-500.0,0.00027245,2]
[355424365,1741133432985,-500.0,0.00027245,2]
[355424366,1741133432995,-500.0,0.00027245,2]
[355424368,1741133433005,-500.0,0.00027245,2]
[355424370,1741133433015,-500.0,0.00027245,2]
[355424372,1741133433025,-500.0,0.00027245,2]
[355424374,1741133433035,-500.0,0.00027245,2]
[355424377,1741133433045,-500.0,0.00027245,2]
[355424379,1741133433056,-500.0,0.00027245,2]
[355424381,1741133433067,-500.0,0.00027245,2]
[355424383,1741133433077,-500.0,0.00027245,2]
[355424385,1741133433087,-500.0,0.00027245,2]
[355424387,1741133433098,-500.0,0.00027245,2]
[355424389,1741133433108,-500.0,0.00027245,2]
[355424390,1741133433117,-500.0,0.00027245,2]
[355424392,1741133433128,-500.0,0.00027245,2]
[355424394,1741133433139,-500.0,0.00027245,2]
[355424396,1741133433148,-500.0,0.00027245,2]
[355424398,1741133433158,-500.0,0.00027245,2]
[355424401,1741133433168,-500.0,0.00027245,2]
[355424403,1741133433178,-500.0,0.00027245,2]
[355424405,1741133433187,-500.0,0.00027245,2]
[355424406,1741133433198,-500.0,0.00027245,2]
[355424408,1741133433207,-500.0,0.00027245,2]
[355424410,1741133433217,-500.0,0.00027245,2]
[355424413,1741133433228,-500.0,0.00027245,2]
[355424414,1741133433238,-500.0,0.00027245,2]
[355424416,1741133433247,-500.0,0.00027245,2]
[355424419,1741133433262,-500.0,0.00027245,2]
[355424420,1741133433276,-500.0,0.00027245,2]
[355424422,1741133433285,-500.0,0.00027245,2]
[355424424,1741133433295,-161.15528358,0.00027245,2]
[355424426,1741133433307,-500.0,0.00027245,2]
[355424429,1741133433318,-500.0,0.00027245,2]
[355424431,1741133433328,-500.0,0.00027245,2]
[355424433,1741133433338,-500.0,0.00027245,2]
[355424435,1741133433350,-500.0,0.00027245,2]
[355424437,1741133433360,-500.0,0.00027245,2]
[355424439,1741133433370,-500.0,0.00027245,2]
[355424441,1741133433380,-500.0,0.00027245,2]
[355424443,1741133433390,-500.0,0.00027245,2]
[355424445,1741133433400,-500.0,0.00027245,2]
[355424447,1741133433410,-500.0,0.00027245,2]
[355424449,1741133433419,-500.0,0.00027245,2]
[355424451,1741133433429,-500.0,0.00027245,2]
[355424452,1741133433439,-500.0,0.00027245,2]
[355424455,1741133433448,-500.0,0.00027245,2]
[355424456,1741133433458,-500.0,0.00027245,2]
[355424458,1741133433468,-500.0,0.00027245,2]
[355424460,1741133433478,-500.0,0.00027245,2]
[355424463,1741133433488,-500.0,0.00027245,2]
[355424465,1741133433499,-600.0,0.00027245,2]
[355424467,1741133433509,-500.0,0.00027245,2]
[355424469,1741133433518,-500.0,0.00027245,2]
[355424471,1741133433528,-500.0,0.00027245,2]
[355424473,1741133433538,-500.0,0.00027245,2]
[355424475,1741133433547,-500.0,0.00027245,2]
[355424477,1741133433556,-500.0,0.00027245,2]
[355424478,1741133433566,-500.0,0.00027245,2]
[355424480,1741133433575,-500.0,0.00027245,2]
[355424483,1741133433585,-266.11552836,0.00027245,2]
[355424484,1741133433595,-500.0,0.00027245,2]
[355424486,1741133433605,-500.0,0.00027245,2]
[355424488,1741133433616,-500.0,0.00027245,2]
[355424491,1741133433629,-500.0,0.00027245,2]
[355424493,1741133433639,-500.0,0.00027245,2]
[355424494,1741133433648,-500.0,0.00027245,2]
[355424497,1741133433658,-500.0,0.00027245,2]
[355424498,1741133433668,-37549.0998223,0.00027246,2]
[355424515,1741133433831,-101781.89706699,0.00027246,2]
[355424531,1741133434036,-186.23061792,0.00027244,2]
[355424532,1741133434048,-500.0,0.00027244,2]
[355424533,1741133434058,-48414.50222201,0.00027246,2]
[355424534,1741133434069,-151.0,0.0002725,2]
[355424535,1741133434079,-800.0,0.0002725,2]
[355424536,1741133434090,-864.0,0.0002725,2]
[355424537,1741133434100,-1451.895382,0.0002725,2]
[355424538,1741133434111,-207.71,0.00027256,2]
[355424539,1741133434121,-200.0,0.00027256,2]
[355424540,1741133434132,-150.0,0.00027256,2]
[355424541,1741133434142,-92385.88236066,0.00027257,2]
[355424542,1741133434155,-57810.51692834,0.00027257,2]
[355424543,1741133434165,-1000.0,0.00027257,2]
[355424544,1741133434176,-500.0,0.00027273,2]
[355424545,1741133434186,-501.35403126,0.00027273,2]
[355424546,1741133434197,-500.0,0.00027273,2]
[355424547,1741133434207,-500.0,0.00027273,2]
[355424548,1741133434217,-500.0,0.00027273,2]
[355424549,1741133434229,-543.89531724,0.00027273,2]
[355424550,1741133434239,-500.0,0.00027273,2]
[355424551,1741133434249,-500.0,0.00027273,2]
[355424552,1741133434260,-500.0,0.00027273,2]
[355424553,1741133434273,-150.0,0.00027366,2]
[355424554,1741133434283,-502.73561742,0.00027373,2]
[355424555,1741133434293,-151.0,0.00027397,7]
[355424556,1741133434303,-1596.22596603,0.00027397,2]
[355424557,1741133434313,-1596.22596603,0.00027397,2]
[355424558,1741133434323,-1596.22596603,0.00027397,2]
[355424559,1741133434332,-1596.22596603,0.00027397,2]
[355424560,1741133434347,-1596.22596603,0.00027397,2]
[355424561,1741133434357,-1596.22596603,0.00027397,2]
[355424562,1741133434367,-1596.22596603,0.00027397,2]
[355424563,1741133434379,-1596.22596603,0.00027397,2]
[355424564,1741133434390,-1596.22596603,0.00027397,2]
[355424565,1741133434401,-1596.22596603,0.00027397,2]
[355424566,1741133434413,-1596.22596603,0.00027397,2]
[355424567,1741133434424,-1596.22596603,0.00027397,2]
[355424568,1741133434434,-1596.22596603,0.00027397,2]
[355424569,1741133434444,-1596.22596603,0.00027397,2]
[355424570,1741133434454,-1596.22596603,0.00027397,2]
[355424571,1741133434465,-1596.22596603,0.00027397,2]
[355424572,1741133434475,-1596.22596603,0.00027397,2]
[355424573,1741133434486,-1596.22596603,0.00027397,2]
[355424574,1741133434497,-1596.22596603,0.00027397,2]
[355424575,1741133434508,-1596.22596603,0.00027397,2]
[355424576,1741133434518,-1596.22596603,0.00027397,2]
[355424577,1741133434529,-1596.22596603,0.00027397,2]
[355424578,1741133434539,-1596.22596603,0.00027397,2]
[355424579,1741133434549,-1596.22596603,0.00027397,2]
[355424580,1741133434559,-1596.22596603,0.00027397,2]
[355424581,1741133434571,-1576.75979572,0.00027397,2]
[355424582,1741133434583,-1576.75979572,0.00027397,2]
[355424583,1741133434594,-1576.75979572,0.00027397,2]
[355424584,1741133434604,-1576.75979572,0.00027397,2]
[355424585,1741133434614,-1576.75979572,0.00027397,2]
[355424586,1741133434623,-1576.75979572,0.00027397,2]
[355424587,1741133434633,-1576.75979572,0.00027397,2]
[355424588,1741133434642,-1576.75979572,0.00027397,2]
[355424589,1741133434652,-1576.75979572,0.00027397,2]
[355424590,1741133434662,-1576.75979572,0.00027397,2]
[355424591,1741133434672,-1576.75979572,0.00027397,2]
[355424592,1741133434682,-1576.75979572,0.00027397,2]
[355424593,1741133434692,-1576.75979572,0.00027397,2]
[355424594,1741133434703,-1576.75979572,0.00027397,2]
[355424595,1741133434713,-1576.75979572,0.00027397,2]
[355424596,1741133434723,-1576.75979572,0.00027397,2]
[355424597,1741133434732,-1576.75979572,0.00027397,2]
[355424598,1741133434741,-1576.75979572,0.00027397,2]
[355424599,1741133434751,-1576.75979572,0.00027397,2]
[355424600,1741133434761,-1576.75979572,0.00027397,2]
[355424601,1741133434771,-1576.75979572,0.00027397,2]
[355424602,1741133434781,-1576.75979572,0.00027397,2]
[355424603,1741133434790,-1576.75979572,0.00027397,2]
[355424604,1741133434800,-1576.75979572,0.00027397,2]
[355424605,1741133434810,-1576.75979572,0.00027397,2]
[355424606,1741133434821,-1576.75979572,0.00027397,2]
[355424607,1741133434830,-1576.75979572,0.00027397,2]
[355424608,1741133434840,-1576.75979572,0.00027397,2]
[355424609,1741133434850,-1576.75979572,0.00027397,2]
[355424610,1741133434859,-1548.0914358,0.00027397,2]
[355424611,1741133434869,-1548.0914358,0.00027397,2]
[355424612,1741133434880,-1548.0914358,0.00027397,2]
[355424613,1741133434890,-1548.0914358,0.00027397,2]
[355424614,1741133434900,-1548.0914358,0.00027397,2]
[355424615,1741133434911,-1548.0914358,0.00027397,2]
[355424616,1741133434921,-1548.0914358,0.00027397,2]
[355424617,1741133434931,-1548.0914358,0.00027397,2]
[355424618,1741133434941,-1548.0914358,0.00027397,2]
[355424619,1741133434951,-1548.0914358,0.00027397,2]
[355424620,1741133434962,-1548.0914358,0.00027397,2]
[355424621,1741133434972,-151.22,0.000274,7]
[355424622,1741133434981,-163.08,0.00027798,2]
[355424623,1741133434991,-197.985848,0.000279,7]
[355424624,1741133435001,-420.0,0.00028086,2]
[355424625,1741133435011,-260.899148,0.00028346,2]
[355424626,1741133435021,-150.0,0.00028736,2]
[355424627,1741133435031,-1441.24872005,0.00029445,2]
[355424628,1741133435042,-166.0,0.0003,2]
[355424629,1741133435051,-150.0,0.00030106,2]
[355424630,1741133435062,-517.84773385,0.00030157,2]
[355424631,1741133435072,-587.0,0.00030397,2]
[355424632,1741133435082,-160.0,0.00030825,2]
[355424633,1741133435094,-4004.85965445,0.00031023,2]
[355424634,1741133435104,-655.86418647,0.00031314,2]
[355424635,1741133435113,-150.0,0.00031475,2]
[355424636,1741133435123,-160.0,0.00032465,2]
[355424637,1741133435134,-160.0,0.00032465,2]
[355424638,1741133435144,-1000.0,0.00032752,5]
[355424639,1741133435153,-1000.0,0.00032752,5]
[355424640,1741133435163,-1000.0,0.00032752,5]
[355424641,1741133435173,-1000.0,0.00032752,5]
[355424642,1741133435183,-150.0,0.00032845,2]
[355424643,1741133435193,-1441.24872005,0.00032854,2]
[355424644,1741133435202,-823.0,0.00032898,2]
[355424645,1741133435212,-150.1,0.000329,30]
[355424646,1741133435223,-12111.12,0.000329,30]
[355424647,1741133435232,-625.33,0.000329,30]
[355424648,1741133435242,-960.18,0.000329,30]
[355424649,1741133435252,-151.0,0.000329,14]
[355424650,1741133435266,-151.0,0.000329,14]
[355424651,1741133435276,-690.979086,0.000329,14]
[355424652,1741133435286,-690.979086,0.000329,14]
[355424653,1741133435296,-151.0,0.000329,14]
[355424654,1741133435307,-459.14,0.00034,30]
[355424655,1741133435318,-151.22,0.00034,7]
[355424656,1741133435328,-150.0,0.00034215,2]
[355424657,1741133435339,-517.84773385,0.00035157,2]
[355424658,1741133435348,-655.86418647,0.00035454,2]
[355424659,1741133435358,-150.0,0.00035585,2]
[355424660,1741133435368,-1152.0,0.00035605,2]
[355424661,1741133435379,-250.0,0.00035766,2]
[355424662,1741133435389,-295.974,0.00035766,2]
[355424663,1741133435399,-151.3,0.00035766,2]
[355424664,1741133435408,-193.77,0.00035766,2]
[355424665,1741133435419,-250.0,0.00035766,2]
[355424666,1741133435431,-150.0,0.00035766,2]
[355424667,1741133435441,-491.752,0.00035766,2]
[355424668,1741133435451,-397.0,0.00035766,2]
[355424669,1741133435462,-500.0,0.0003589,2]
[355424670,1741133435473,-459.14,0.00036,30]
[355424671,1741133435483,-471.86464305,0.000362,98]
[355424672,1741133435493,-471.86464303,0.000362,98]
[355424673,1741133435503,-1441.24872005,0.00036263,2]
[355424674,1741133435513,-471.86464303,0.00036648,100]
[355424675,1741133435523,-150.0,0.00036955,2]
[355424676,1741133435533,-12111.12,0.000376,30]
[355424677,1741133435542,-625.33,0.000376,30]
[355424678,1741133435562,-960.18,0.000376,30]
[355424679,1741133435572,-154.44,0.000378,31]
[355424680,1741133435581,-150.0,0.00038325,2]
[355424681,1741133435592,-999.0,0.00038356,120]
[355424682,1741133435603,-162.28975151,0.00038356,2]
[355424683,1741133435612,-459.14,0.000385,30]
[355424684,1741133435623,-150.1,0.000385,30]
[355424685,1741133435633,-151.22,0.000385,7]
[355424686,1741133435642,-1481.0,0.00038534,5]
[355424687,1741133435652,-397.0,0.00038766,2]
[355424688,1741133435662,-999.0,0.00038904,120]
[355424689,1741133435672,-999.0,0.00039452,120]
[355424690,1741133435682,-655.86418647,0.00039595,2]
[355424691,1741133435692,-1441.24872005,0.00039673,2]
[355424692,1741133435702,-150.0,0.00039695,2]
[355424693,1741133435711,-459.14,0.000397,30]
[355424694,1741133435722,-1000.0,0.0004,3]
[355424695,1741133435731,-958.0,0.0004,120]
[355424696,1741133435741,-999.0,0.0004,120]
[355424697,1741133435750,-625.33,0.000405,30]
[355424698,1741133435760,-960.18,0.000405,30]
[355424699,1741133435769,-154.44,0.000405,31]
[355424700,1741133435778,-154.44,0.000405,31]
[355424701,1741133435788,-999.0,0.00040547,120]
[355424702,1741133435797,-15625.0,0.0004059,3]
[355424703,1741133435807,-160.0,0.0004059,3]
[355424704,1741133435816,-705.589308,0.0004059,14]
[355424705,1741133435826,-705.589308,0.0004059,14]
[355424706,1741133435836,-12111.12,0.000406,30]
[355424707,1741133435845,-215.06791861,0.00040658,120]
[355424708,1741133435858,-1000.0,0.00041,7]
[355424709,1741133435868,-544.29674374,0.00041,120]
[355424710,1741133435878,-205.92275371,0.00041064,2]
[355424711,1741133435889,-545.31,0.00041095,120]
[355424712,1741133435899,-500.0,0.00041211,2]
[355424713,1741133435909,-100022.51996156,0.00041303,2]
[355424714,1741133435918,-264.18808342,0.00041303,120]
[355424715,1741133436045,-151.0,0.00041303,120]
[355424716,1741133436055,-690.979086,0.00041303,120]
[355424717,1741133436064,-690.979086,0.00041303,120]
[355424718,1741133436074,-154.704604,0.00041303,120]
[355424719,1741133436084,-534.7833429,0.00041413,30]
[355424720,1741133436094,-459.14,0.000415,30]
[355424721,1741133436104,-397.0,0.00041766,2]
[355424722,1741133436114,-150.1,0.000419,30]
[355424723,1741133436124,-500.0,0.00042,120]
[355424724,1741133436133,-1000.0,0.0004215,30]
[355424725,1741133436143,-712.1467854,0.00042372,30]
[355424726,1741133436152,-356.0733927,0.00042372,30]
[355424727,1741133436161,-356.0733927,0.00042372,30]
[355424728,1741133436170,-356.0733927,0.00042372,30]
[355424729,1741133436180,-356.0733927,0.00042372,30]
[355424730,1741133436190,-356.0733927,0.00042372,30]